bitfinex-derivatives/quotes_BTCF0:USTF0_20250809
["timestamp","ask_amount","ask_price","bid_price","bid_amount"]
[1754770723792,0.57128565,116650.0,116640.0,1.4514436]
[1754770725191,0.57128565,116650.0,116640.0,1.78513565]
[1754770725395,0.2375936,116650.0,116640.0,1.78513565]
[1754770725588,0.57128565,116650.0,116640.0,1.42433565]
[1754770725891,0.57128565,116650.0,116640.0,1.78513565]
[1754770726090,0.57128565,116650.0,116640.0,1.79390085]
[1754770727689,0.57128565,116650.0,116640.0,1.43310085]
[1754770727894,0.57128565,116650.0,116640.0,1.79390085]
[1754770731192,0.48558205,116650.0,116640.0,1.79390085]
[1754770731397,0.57128565,116650.0,116640.0,1.78513565]
[1754770733601,0.2375936,116650.0,116640.0,1.78513565]
[1754770733901,0.57128565,116650.0,116640.0,1.4514436]
[1754770734296,0.57128565,116650.0,116640.0,1.78513565]
[1754770734704,0.2375936,116650.0,116640.0,0.95161565]
[1754770734889,0.57128565,116650.0,116640.0,1.79168031]
[1754770735090,0.57128565,116650.0,116640.0,1.45798826]
[1754770735294,0.57128565,116650.0,116640.0,1.79168031]
[1754770737301,0.57128565,116650.0,116640.0,1.78321565]
[1754770737496,0.57128565,116650.0,116640.0,1.4495236]
[1754770737802,0.57128565,116650.0,116640.0,1.78321565]
[1754770737999,0.57128565,116650.0,116640.0,1.4495236]
[1754770739300,0.57128565,116650.0,116640.0,1.78321565]
[1754770739490,0.2375936,116650.0,116640.0,1.78321565]
[1754770739695,0.57128565,116650.0,116640.0,1.78321565]
[1754770741408,0.57128565,116650.0,116640.0,1.4495236]
[1754770741598,0.57128565,116650.0,116640.0,1.78321565]
[1754770741799,0.48897565,116650.0,116640.0,1.78321565]
[1754770742001,0.57128565,116650.0,116640.0,1.78321565]
[1754770742608,0.57128565,116650.0,116640.0,1.4495236]
[1754770742800,0.2375936,116650.0,116640.0,1.78321565]
[1754770743001,0.57128565,116650.0,116640.0,1.78321565]
[1754770744204,0.2375936,116650.0,116640.0,1.78321565]
[1754770744404,0.57128565,116650.0,116640.0,1.78321565]
[1754770745410,0.57128565,116650.0,116640.0,1.4495236]
[1754770745710,0.57128565,116650.0,116640.0,1.78321565]
[1754770747012,0.57128565,116650.0,116640.0,1.4495236]
[1754770747212,0.57128565,116650.0,116640.0,1.78321565]
[1754770747412,0.57128565,116650.0,116640.0,1.4495236]
[1754770747615,0.57128565,116650.0,116640.0,1.78321565]
[1754770748015,0.57128565,116650.0,116640.0,1.4495236]
[1754770748316,0.57128565,116650.0,116640.0,1.78321565]
[1754770749317,0.57128565,116650.0,116640.0,1.4495236]
[1754770749517,0.2375936,116650.0,116640.0,1.78321565]
[1754770749915,0.57128565,116650.0,116640.0,1.78321565]
[1754770754227,0.57128565,116650.0,116640.0,1.4495236]
[1754770758312,0.9049777,116650.0,116640.0,0.3608]
[1754770758516,0.9049777,116650.0,116640.0,0.4465109]
[1754770758822,1.7338977,116650.0,116640.0,0.4465109]
[1754770759419,1.0665136,116650.0,116640.0,0.4465109]
[1754770759624,1.7338977,116650.0,116640.0,0.4465109]
[1754770762024,1.40020565,116650.0,116640.0,0.4465109]
[1754770764930,1.0665136,116650.0,116640.0,0.4465109]
[1754770765126,1.40020565,116650.0,116640.0,0.4465109]
[1754770766431,0.57128565,116650.0,116640.0,0.4465109]
[1754770769733,0.57128565,116650.0,116640.0,0.0857109]
[1754770769934,0.57128565,116650.0,116640.0,0.4465109]
[1754770773336,0.2375936,116650.0,116640.0,0.4465109]
[1754770773536,0.57128565,116650.0,116640.0,0.4465109]
[1754770777837,0.2375936,116650.0,116640.0,0.4465109]
[1754770778038,0.57128565,116650.0,116640.0,0.4465109]
[1754770779039,0.2375936,116650.0,116640.0,0.4465109]
[1754770779239,0.57128565,116650.0,116640.0,0.4465109]
[1754770783944,0.2375936,116650.0,116640.0,0.4465109]
[1754770784349,0.57128565,116650.0,116640.0,0.4465109]
[1754770785145,0.2375936,116650.0,116640.0,0.4465109]
[1754770785346,0.57128565,116650.0,116640.0,0.4465109]
[1754770785951,0.57128565,116650.0,116640.0,0.78020295]
[1754770786551,0.2375936,116650.0,116640.0,0.78020295]
[1754770786850,0.57128565,116650.0,116640.0,0.78020295]
[1754770787955,0.2375936,116650.0,116640.0,0.78020295]
[1754770788156,0.57128565,116650.0,116640.0,0.78020295]
[1754770789456,0.57128565,116650.0,116640.0,0.4465109]
[1754770789654,0.57128565,116650.0,116640.0,0.78020295]
[1754770789851,0.2375936,116650.0,116640.0,0.78020295]
[1754770790052,0.57128565,116650.0,116640.0,0.78020295]
[1754770790556,0.51160565,116650.0,116640.0,0.78020295]
[1754770790752,0.56545565,116650.0,116640.0,0.78020295]
[1754770793258,0.51118565,116650.0,116640.0,0.78020295]
[1754770793459,0.56564565,116650.0,116640.0,0.78020295]
[1754770794251,0.2319536,116650.0,116640.0,0.78020295]
[1754770794456,0.56564565,116650.0,116640.0,0.78020295]
[1754770794657,0.2319536,116650.0,116640.0,0.78020295]
[1754770794858,0.56564565,116650.0,116640.0,0.78020295]
[1754770795157,0.8993377,116650.0,116640.0,0.4465108]
[1754770795958,0.56564565,116650.0,116640.0,0.4465108]
[1754770797256,1.39068565,116650.0,116640.0,0.4465108]
[1754770801562,1.0569936,116650.0,116640.0,0.4465108]
[1754770802059,1.39068565,116650.0,116640.0,0.4465108]
[1754770803259,0.56564565,116650.0,116640.0,0.4465108]
[1754770803461,0.2319536,116650.0,116640.0,0.4465108]
[1754770803660,0.56564565,116650.0,116640.0,0.4465108]
[1754770809660,0.56564565,116650.0,116640.0,0.0857108]
[1754770809860,0.56564565,116650.0,116640.0,0.4465108]
[1754770810371,0.56564565,116650.0,116640.0,0.0857108]
[1754770810556,0.56564565,116650.0,116640.0,0.4465108]
[1754770810756,0.56564565,116650.0,116640.0,0.0857108]
[1754770810957,0.56564565,116650.0,116640.0,0.4465108]
[1754770811762,0.56564565,116650.0,116640.0,0.0857108]
[1754770811968,0.56564565,116650.0,116640.0,0.4465108]
[1754770817272,0.2319536,116650.0,116640.0,1.2701108]
[1754770817472,0.56564565,116650.0,116640.0,1.2701108]
[1754770817874,0.2319531,116650.0,116640.0,1.60380285]
[1754770818067,0.56564515,116650.0,116640.0,1.2701108]
[1754770818372,0.56564515,116650.0,116640.0,1.60380285]
[1754770821872,0.56564515,116650.0,116640.0,1.2701108]
[1754770822074,0.56564515,116650.0,116640.0,1.60380285]
[1754770822270,0.56564515,116650.0,116640.0,1.24300285]
[1754770822471,0.56564515,116650.0,116640.0,1.60380285]
[1754770823676,0.56564515,116650.0,116640.0,1.24300285]
[1754770823979,0.56564515,116650.0,116640.0,1.60380285]
[1754770824477,0.56564515,116650.0,116640.0,1.2701108]
[1754770824672,0.56564515,116650.0,116640.0,1.60380285]
[1754770824977,0.2319531,116650.0,116640.0,1.60380285]
[1754770825576,0.56564515,116650.0,116640.0,1.60380285]
[1754770825972,0.56564515,116650.0,116640.0,1.2701108]
[1754770826175,0.56564515,116650.0,116640.0,1.60380285]
[1754770827579,0.1781031,116650.0,116640.0,1.9374949]
[1754770827779,0.51179515,116650.0,116640.0,1.60380285]
[1754770828177,0.0924,116650.0,116640.0,1.60380285]
[1754770828370,0.42609205,116650.0,116640.0,1.60380285]
[1754770829083,0.51179515,116650.0,116640.0,1.60380285]
[1754770829582,0.50979515,116650.0,116640.0,1.60380285]
[1754770829784,0.51079515,116650.0,116640.0,1.60380285]
[1754770830081,0.53447515,116650.0,116640.0,1.60380285]
[1754770830282,0.2007831,116650.0,116640.0,1.60380285]
[1754770830583,0.56634515,116650.0,116640.0,1.60380285]
[1754770831379,0.56634515,116650.0,116640.0,0.4465108]
[1754770832175,0.2326531,116650.0,116640.0,0.4465108]
[1754770832691,0.56634515,116650.0,116640.0,0.78020285]
[1754770832885,0.56634515,116650.0,116640.0,0.4465108]
[1754770833687,0.56634515,116650.0,116640.0,1.2689108]
[1754770833986,0.48064205,116650.0,116640.0,1.2689108]
[1754770836892,0.48064205,116650.0,116640.0,1.60260285]
[1754770837293,0.48064205,116650.0,116640.0,1.2689108]
[1754770837494,0.48064205,116650.0,116640.0,1.60260285]
[1754770838793,0.48064205,116650.0,116640.0,1.2689108]
[1754770838993,0.48064205,116650.0,116640.0,1.60260285]
[1754770842500,0.14695,116650.0,116640.0,1.60260285]
[1754770842703,0.48064205,116650.0,116640.0,1.60260285]
[1754770843795,0.48064205,116650.0,116640.0,1.2689108]
[1754770843999,0.48064205,116650.0,116640.0,1.60260285]
[1754770844499,0.48064205,116650.0,116640.0,1.2689108]
[1754770844703,0.48064205,116650.0,116640.0,1.60260285]
[1754770847402,0.14695,116650.0,116640.0,1.60260285]
[1754770847605,0.48064205,116650.0,116640.0,1.60260285]
[1754770849002,0.48064205,116650.0,116640.0,1.24180285]
[1754770849203,0.48064205,116650.0,116640.0,1.60260285]
[1754770854710,0.56634515,116650.0,116640.0,1.2689108]
[1754770854901,0.56634515,116650.0,116640.0,1.60260285]
[1754770855509,0.48064205,116650.0,116640.0,1.60260285]
[1754770856817,0.48064205,116650.0,116640.0,1.2689108]
[1754770857013,0.48064205,116650.0,116640.0,1.60260285]
[1754770857619,0.48064205,116650.0,116640.0,1.2689108]
[1754770857815,0.48064205,116650.0,116640.0,1.60260285]
[1754770859219,0.9000373,116650.0,116640.0,1.2675908]
[1754770859422,0.56634525,116650.0,116640.0,1.2675908]
[1754770859712,0.2326532,116650.0,116640.0,1.2675908]
[1754770859917,0.56634525,116650.0,116640.0,1.2675908]
[1754770861310,0.56634525,116650.0,116640.0,0.9067908]
[1754770861621,0.56634525,116650.0,116640.0,1.2675908]
[1754770864623,0.2326532,116650.0,116640.0,1.2675908]
[1754770864926,0.56634525,116650.0,116640.0,1.2675908]
[1754770865531,0.48064205,116650.0,116640.0,1.2675908]
[1754770867022,0.48064205,116650.0,116640.0,1.60128285]
[1754770867226,0.36515205,116650.0,116640.0,1.60128285]
[1754770867422,0.03146,116650.0,116640.0,1.9349749]
[1754770867622,0.36515205,116650.0,116640.0,1.9349749]
[1754770867831,0.36515205,116650.0,116640.0,1.60128285]
[1754770868331,0.38421205,116650.0,116640.0,1.60128285]
[1754770868529,0.42031205,116650.0,116640.0,1.60128285]
[1754770868830,0.45412205,116650.0,116640.0,1.2675908]
[1754770869030,0.47675205,116650.0,116640.0,1.60128285]
[1754770870328,0.47675205,116650.0,116640.0,1.2675908]
[1754770870529,0.47675205,116650.0,116640.0,1.60128285]
[1754770872932,0.47675205,116650.0,116640.0,1.2675908]
[1754770873228,0.47675205,116650.0,116640.0,1.60128285]
[1754770874935,0.14306,116650.0,116640.0,1.60128285]
[1754770875140,0.47675205,116650.0,116640.0,1.60128285]
[1754770876736,0.14306,116650.0,116640.0,1.60128285]
[1754770876941,0.47675205,116650.0,116640.0,1.60128285]
[1754770878843,0.03146,116650.0,116640.0,1.9349749]
[1754770879025,0.002,116650.0,116640.0,1.9349749]
[1754770879232,0.02955,116650.0,116640.0,1.2675908]
[1754770879432,0.02955,116650.0,116640.0,1.9349749]
[1754770880132,0.02855,116650.0,116640.0,1.9349749]
[1754770880338,0.02855,116650.0,116640.0,1.9359749]
[1754770880737,0.02755,116650.0,116640.0,1.9359749]
[1754770882945,0.36150714,116670.0,116650.0,0.257098]
[1754770883138,0.36124205,116660.0,116650.0,0.257098]
[1754770883439,0.36124205,116660.0,116650.0,1.77115005]
[1754770883842,0.36124205,116660.0,116650.0,1.437458]
[1754770884032,0.41640205,116660.0,116650.0,1.77115005]
[1754770884339,0.45021205,116660.0,116650.0,1.77115005]
[1754770884542,0.45121205,116660.0,116650.0,1.77115005]
[1754770884843,0.45121205,116660.0,116650.0,2.13195005]
[1754770886732,0.45221205,116660.0,116650.0,2.13195005]
[1754770889042,0.1116,116690.0,116680.0,0.085681]
[1754770889239,0.44529205,116690.0,116680.0,0.78017305]
[1754770889743,0.47284205,116690.0,116680.0,0.78017305]
[1754770890142,0.56251575,116690.0,116680.0,0.447481]
[1754770890538,0.56751575,116690.0,116680.0,0.447481]
[1754770890842,0.2338237,116690.0,116680.0,0.447481]
[1754770891042,0.56751575,116690.0,116680.0,0.447481]
[1754770891637,0.2338237,116690.0,116680.0,0.447481]
[1754770892043,0.56751575,116690.0,116680.0,0.447481]
[1754770892739,0.2338237,116690.0,116680.0,0.447481]
[1754770893042,0.56751575,116690.0,116680.0,0.447481]
[1754770893233,0.14815,116690.0,116680.0,0.447481]
[1754770893439,0.56751575,116690.0,116680.0,0.447481]
[1754770894641,0.1222237,116690.0,116680.0,0.78117305]
[1754770894847,0.42492205,116690.0,116680.0,0.78117305]
[1754770895047,0.48184205,116690.0,116680.0,0.78117305]
[1754770895649,0.2338237,116690.0,116680.0,0.447481]
[1754770895848,0.56751575,116690.0,116680.0,0.447481]
[1754770896456,0.56751575,116690.0,116680.0,0.78117305]
[1754770896457,0.2338237,116690.0,116680.0,0.78117305]
[1754770896651,0.48184205,116690.0,116680.0,0.78117305]
[1754770897949,0.14815,116690.0,116680.0,0.78117305]
[1754770898146,0.48184205,116690.0,116680.0,0.78117305]
[1754770899147,0.48184205,116690.0,116680.0,0.447481]
[1754770899337,0.48184205,116690.0,116680.0,0.78117305]
[1754770899749,0.48184205,116690.0,116680.0,0.447481]
[1754770899952,0.48184205,116690.0,116680.0,0.78117305]
[1754770903846,0.48184205,116690.0,116680.0,0.447481]
[1754770904045,0.48184205,116690.0,116680.0,0.78117305]
[1754770905054,0.48184205,116690.0,116680.0,0.447481]
[1754770905252,0.48184205,116690.0,116680.0,0.78117305]
[1754770906052,0.14815,116690.0,116680.0,0.78117305]
[1754770906253,0.48184205,116690.0,116680.0,0.447481]
[1754770906454,0.48184205,116690.0,116680.0,0.78117305]
[1754770907653,0.48184205,116690.0,116680.0,0.42037305]
[1754770907852,0.48184205,116690.0,116680.0,0.78117305]
[1754770908852,0.56751565,116690.0,116680.0,0.447481]
[1754770909154,1.7191277,116690.0,116680.0,0.447481]
[1754770909350,1.7191277,116690.0,116680.0,0.001]
[1754770909351,2.05281975,116690.0,116680.0,0.001]
[1754770909557,0.222701,116680.0,116670.0,0.4464868]
[1754770909756,0.8900851,116680.0,116670.0,0.4464868]
[1754770910655,0.55624923,116680.0,116670.0,0.4464868]
[1754770910955,0.55924923,116680.0,116670.0,0.4464868]
[1754770911852,0.56224923,116680.0,116670.0,0.4474868]
[1754770921775,0.47656823,116680.0,116670.0,0.4474868]
[1754770921965,0.14302,116680.0,116670.0,0.78103503]
[1754770922666,0.14302,116680.0,116670.0,0.4474868]
[1754770924466,0.06709,116680.0,116670.0,1.59819503]
[1754770924769,0.03394,116680.0,116670.0,1.59819503]
[1754770925572,0.03394,116680.0,116670.0,1.2646468]
[1754770925773,0.03394,116680.0,116670.0,1.59819503]
[1754770925976,0.03394,116680.0,116670.0,0.4474868]
[1754770926277,0.47491823,116680.0,116670.0,0.4474868]
[1754770926473,0.14137,116680.0,116670.0,1.2645668]
[1754770927173,0.06709,116680.0,116670.0,1.2645668]
[1754770927569,0.03394,116680.0,116670.0,1.2645668]
[1754770927969,0.03394,116680.0,116670.0,1.59811503]
[1754770929175,0.03394,116680.0,116670.0,1.95891503]
[1754770929573,0.03394,116680.0,116670.0,0.8082868]
[1754770929877,0.41937823,116680.0,116670.0,0.8082868]
[1754770930171,0.13903,116680.0,116670.0,0.8082868]
[1754770930476,0.03166,116680.0,116670.0,1.14183503]
[1754770930977,0.03166,116680.0,116670.0,0.8082868]
[1754770931382,0.03166,116680.0,116670.0,1.14183503]
[1754770932671,0.03166,116680.0,116670.0,0.8082868]
[1754770932877,0.47029823,116680.0,116670.0,0.8082868]
[1754770933384,0.13675,116680.0,116670.0,0.8082868]
[1754770937881,0.13675,116680.0,116670.0,1.14183503]
[1754770938178,0.13675,116680.0,116670.0,0.8082868]
[1754770938378,0.47029823,116680.0,116670.0,0.8082868]
[1754770938778,0.47029823,116680.0,116670.0,0.8072868]
[1754770939286,0.46929823,116680.0,116670.0,0.8072868]
[1754770940382,0.13575,116680.0,116670.0,0.8072868]
[1754770947087,0.13575,116680.0,116670.0,0.4464868]
[1754770948487,0.13575,116680.0,116670.0,0.78003503]
[1754770950886,0.13575,116680.0,116670.0,0.4464868]
[1754770954695,0.13575,116680.0,116670.0,0.78003503]
[1754770959692,0.13575,116680.0,116670.0,1.14083503]
[1754770962098,0.13575,116680.0,116670.0,0.4464868]
[1754770962305,0.13575,116680.0,116670.0,0.78003503]
[1754770962798,0.46918775,116680.0,116670.0,0.77992455]
[1754770963803,0.46918775,116680.0,116670.0,0.4464868]
[1754770964098,0.46918775,116680.0,116670.0,0.77992455]
[1754770965501,0.13575,116680.0,116670.0,0.77992455]
[1754770965692,0.46918775,116680.0,116670.0,0.41912455]
[1754770965892,0.46918775,116680.0,116670.0,0.77992455]
[1754770968904,0.43713775,116680.0,116670.0,0.77992455]
[1754770969096,0.41605775,116680.0,116670.0,0.77992455]
[1754770969395,0.03066,116680.0,116670.0,0.77992455]
[1754770969596,0.02766,116680.0,116670.0,0.77992455]
[1754770969896,0.03166,116680.0,116670.0,0.78092455]
[1754770970600,0.03066,116680.0,116670.0,0.77992455]
[1754770975504,0.03066,116680.0,116670.0,1.1133623]
[1754770976500,0.03066,116680.0,116670.0,0.4464868]
[1754770976704,0.03066,116680.0,116670.0,0.77992455]
[1754770979112,0.03066,116680.0,116670.0,0.4464868]
[1754770979402,0.03066,116680.0,116670.0,0.77992455]
[1754770993315,0.03066,116680.0,116670.0,0.4464868]
[1754770993316,0.8041755,116680.0,116670.0,0.4464868]
[1754770993519,0.8041755,116680.0,116670.0,1.2619268]
[1754770993721,0.8041755,116680.0,116670.0,1.59536455]
[1754770994011,0.47073775,116680.0,116670.0,1.59536455]
[1754770994408,0.1373,116680.0,116670.0,1.59536455]
[1754770994613,0.47073775,116680.0,116670.0,1.59536455]
[1754770998716,0.1373,116680.0,116670.0,1.59536455]
[1754770998921,0.47073775,116680.0,116670.0,1.59536455]
[1754770999525,0.47073775,116680.0,116670.0,1.2619268]
[1754770999724,0.47073775,116680.0,116670.0,1.59536455]
[1754770999925,0.1373,116680.0,116670.0,1.59536455]
[1754771000113,0.47073775,116680.0,116670.0,1.59536455]
[1754771004022,0.47073775,116680.0,116670.0,1.2619268]
[1754771004226,0.47073775,116680.0,116670.0,1.59536455]
[1754771006321,0.47073775,116680.0,116670.0,1.70337619]
[1754771007228,0.1373,116680.0,116670.0,1.70337619]
[1754771007428,0.47073775,116680.0,116670.0,1.70337619]
[1754771008129,0.47073775,116680.0,116670.0,1.59536455]
[1754771008329,0.47073775,116680.0,116670.0,1.2619268]
[1754771008531,0.47073775,116680.0,116670.0,1.59536455]
[1754771008924,0.1373,116680.0,116670.0,1.59536455]
[1754771009118,0.47073775,116680.0,116670.0,1.59536455]
[1754771010130,0.47073775,116680.0,116670.0,1.70337619]
[1754771014332,0.1373,116680.0,116670.0,1.70337619]
[1754771014533,0.47073775,116680.0,116670.0,1.70337619]
[1754771014932,0.47073775,116680.0,116670.0,1.59536455]
[1754771016428,0.1373,116680.0,116670.0,1.59536455]
[1754771016628,0.47073775,116680.0,116670.0,1.59536455]
[1754771021835,0.47073775,116680.0,116670.0,1.70337619]
[1754771024344,0.1373,116680.0,116670.0,1.70337619]
[1754771024534,0.47073775,116680.0,116670.0,1.70337619]
[1754771025137,0.1373,116680.0,116670.0,1.70337619]
[1754771025436,0.47073775,116680.0,116670.0,1.59536455]
[1754771027942,0.47073775,116680.0,116670.0,1.70340757]
[1754771036449,0.03066,116680.0,116670.0,1.70340757]
[1754771036749,0.36409775,116680.0,116670.0,1.70340757]
[1754771036948,0.41563775,116680.0,116670.0,1.70340757]
[1754771037248,0.44861775,116680.0,116670.0,1.70340757]
[1754771037650,0.41563775,116680.0,116670.0,1.70340757]
[1754771038049,0.44861775,116680.0,116670.0,1.70340757]
[1754771038652,0.47085775,116680.0,116670.0,1.70340757]
[1754771040948,0.11743,116680.0,116670.0,1.59536455]
[1754771041156,0.11743,116680.0,116670.0,1.9288023]
[1754771041157,0.0483,116680.0,116670.0,1.9288023]
[1754771041358,0.0483,116680.0,116670.0,1.2619268]
[1754771041557,0.0483,116680.0,116670.0,1.59536455]
[1754771042056,0.03066,116680.0,116670.0,1.9288023]
[1754771042263,0.03066,116680.0,116670.0,1.59536455]
[1754771042970,0.03066,116680.0,116670.0,1.70340279]
[1754771043773,0.03066,116680.0,116670.0,1.70339503]
[1754771049376,0.03066,116680.0,116670.0,1.36995728]
[1754771049571,0.03066,116680.0,116670.0,1.70339503]
[1754771050176,0.03066,116680.0,116670.0,2.06419503]
[1754771050577,0.03066,116680.0,116670.0,1.95616455]
[1754771051976,0.03066,116680.0,116670.0,2.06419503]
[1754771053080,0.03066,116680.0,116670.0,1.95616455]
[1754771057074,0.03066,116680.0,116670.0,2.06419503]
[1754771058776,0.03066,116680.0,116670.0,1.95616455]
[1754771060285,0.03066,116680.0,116670.0,1.6227268]
[1754771060481,0.03066,116680.0,116670.0,1.95616455]
[1754771060986,0.06583,116680.0,116670.0,1.95616455]
[1754771061181,0.07919,116680.0,116670.0,1.95616455]
[1754771061984,0.11369,116680.0,116670.0,1.95616455]
[1754771062579,0.11369,116680.0,116670.0,1.6227268]
[1754771062779,0.11369,116680.0,116670.0,1.95616455]
[1754771062980,0.11369,116680.0,116670.0,2.06416278]
[1754771063785,0.13594,116680.0,116670.0,1.95616455]
[1754771065989,0.46937775,116680.0,116670.0,1.95616455]
[1754771068092,0.13594,116680.0,116670.0,1.95616455]
[1754771068288,0.13594,116680.0,116670.0,1.6227268]
[1754771068493,0.13594,116680.0,116670.0,2.06416278]
[1754771072007,0.13594,116680.0,116670.0,1.34256278]
[1754771072297,0.13594,116680.0,116670.0,2.06416278]
[1754771075107,0.10144,116680.0,116670.0,2.06416278]
[1754771075597,0.06029,116680.0,116670.0,2.06416278]
[1754771075901,0.03066,116680.0,116670.0,2.06416278]
[1754771076904,0.03066,116680.0,116670.0,2.39760053]
[1754771079606,0.03066,116680.0,116670.0,2.06416278]
[1754771081598,0.03066,116680.0,116670.0,1.95616455]
[1754771082002,0.03066,116680.0,116670.0,2.2896023]
[1754771082207,0.38550775,116700.0,116690.0,0.0856735]
[1754771082208,0.43621775,116700.0,116690.0,0.0856735]
[1754771082402,0.43621775,116700.0,116690.0,1.59035125]
[1754771082602,0.46089775,116700.0,116690.0,1.59035125]
[1754771082803,0.46089775,116700.0,116690.0,1.69836034]
[1754771083705,0.46289775,116700.0,116690.0,1.69836034]
[1754771084116,0.43346775,116700.0,116690.0,1.69936034]
[1754771084321,0.05997,116700.0,116690.0,2.06016034]
[1754771084518,0.46689775,116700.0,116690.0,2.06016034]
[1754771085922,0.41204775,116700.0,116690.0,2.06016034]
[1754771086116,0.39340775,116700.0,116690.0,2.06016034]
[1754771086322,0.36411775,116700.0,116690.0,1.95215125]
[1754771086618,0.03068,116700.0,116690.0,1.95215125]
[1754771086818,0.36411775,116700.0,116690.0,1.95215125]
[1754771087117,0.36411775,116700.0,116690.0,2.06016034]
[1754771087422,0.39853775,116700.0,116690.0,2.06016034]
[1754771087623,0.41204775,116700.0,116690.0,2.06016034]
[1754771088015,0.41204775,116700.0,116690.0,1.72672259]
[1754771088213,0.41204775,116700.0,116690.0,2.06016034]
[1754771088417,0.46689775,116700.0,116690.0,2.06016034]
[1754771090718,0.46689775,116700.0,116690.0,1.6187135]
[1754771091022,0.46689775,116700.0,116690.0,1.95215125]
[1754771092419,0.46689775,116700.0,116690.0,1.59135125]
[1754771092626,0.46689775,116700.0,116690.0,1.95215125]
[1754771093325,0.46689775,116700.0,116690.0,1.6187135]
[1754771093523,0.46689775,116700.0,116690.0,1.95215125]
[1754771093722,0.46689775,116700.0,116690.0,1.6187135]
[1754771093923,0.46589775,116700.0,116690.0,1.95115125]
[1754771094626,0.46489775,116700.0,116690.0,1.95115125]
[1754771095526,0.46389775,116700.0,116690.0,1.95115125]
[1754771098027,0.46389775,116700.0,116690.0,1.59035125]
[1754771099833,0.46389775,116700.0,116690.0,1.2569135]
[1754771100032,0.46389775,116700.0,116690.0,1.59035125]
[1754771100826,0.13046,116700.0,116690.0,1.59035125]
[1754771101029,0.46389775,116700.0,116690.0,1.59035125]
[1754771101932,0.41182775,116700.0,116690.0,1.59035125]
[1754771102231,0.46389775,116700.0,116690.0,1.59035125]
[1754771102725,0.13046,116700.0,116690.0,1.59035125]
[1754771102926,0.46389775,116700.0,116690.0,1.59035125]
[1754771106532,0.46389775,116700.0,116690.0,1.2569135]
[1754771106733,0.46389775,116700.0,116690.0,1.59035125]
[1754771107536,0.46389775,116700.0,116690.0,1.69836034]
[1754771110032,0.46389775,116700.0,116690.0,1.33756034]
[1754771110238,0.46389775,116700.0,116690.0,2.05916034]
[1754771110438,0.40904775,116700.0,116690.0,2.05916034]
[1754771110643,0.02768,116700.0,116690.0,2.05916034]
[1754771111028,0.02768,116700.0,116690.0,2.39259809]
[1754771111342,0.02768,116700.0,116690.0,2.284589]
[1754771111934,0.02768,116700.0,116690.0,1.95115125]
[1754771112335,0.02768,116700.0,116690.0,2.284589]
[1754771112538,0.02768,116700.0,116690.0,1.95115125]
[1754771113041,0.02768,116700.0,116690.0,2.05903358]
[1754771114441,0.02768,116700.0,116690.0,2.12619997]
[1754771115735,0.02768,116700.0,116690.0,2.45963772]
[1754771115930,0.02768,116700.0,116690.0,2.12619997]
[1754771116535,0.02768,116700.0,116690.0,2.45963772]
[1754771117638,0.02768,116700.0,116690.0,2.35175539]
[1754771117940,0.02768,116700.0,116690.0,2.45962835]
[1754771118841,0.02768,116700.0,116690.0,2.35175539]
[1754771119435,0.02768,116700.0,116690.0,1.68487989]
[1754771119636,0.02768,116700.0,116690.0,2.12617385]
[1754771120036,0.02768,116700.0,116690.0,2.4596116]
[1754771120334,0.003,116700.0,116690.0,2.4596116]
[1754771120542,0.02664,116700.0,116690.0,2.35175539]
[1754771122046,0.02664,116700.0,116690.0,1.68487989]
[1754771122232,0.02664,116700.0,116690.0,2.35175539]
[1754771124145,0.02664,116700.0,116690.0,2.01831764]
[1754771124347,0.37306775,116700.0,116690.0,1.68227989]
[1754771124545,0.38823775,116700.0,116690.0,2.01571764]
[1754771124745,0.12931,116700.0,116690.0,2.01571764]
[1754771125342,0.54841385,116700.0,116690.0,1.68227989]
[1754771125542,0.54841385,116700.0,116690.0,2.01571764]
[1754771126644,0.8818516,116700.0,116690.0,0.78876639]
[1754771126953,0.8818516,116700.0,116690.0,1.16848]
[1754771127245,0.8818516,116700.0,116690.0,0.3608]
[1754771127849,0.2149761,116700.0,116690.0,0.3608]
[1754771128047,0.8818516,116700.0,116690.0,0.3608]
[1754771128749,0.2149761,116700.0,116690.0,0.3608]
[1754771128949,0.8818516,116700.0,116690.0,0.3608]
[1754771131145,0.1883435,116690.0,116680.0,1.67319915]
[1754771131343,0.54542125,116690.0,116680.0,1.67319915]
[1754771131543,0.54542125,116690.0,116680.0,1.3397614]
[1754771131741,0.54542125,116690.0,116680.0,1.67319915]
[1754771132150,0.54542125,116690.0,116680.0,1.67419915]
[1754771133249,0.2119835,116690.0,116680.0,1.67419915]
[1754771133451,0.2119835,116690.0,116680.0,1.50283775]
[1754771133650,0.54542125,116690.0,116680.0,1.50283775]
[1754771133846,0.49604782,116730.0,116680.0,1.50283775]
[1754771133847,0.13887122,116800.0,116700.0,0.3608]
[1754771134048,0.02143469,116800.0,116790.0,1.44671335]
[1754771134252,0.02143469,116800.0,116790.0,1.0276755]
[1754771134253,0.02364,116800.0,116790.0,1.0276755]
[1754771134443,0.3608,116820.0,116790.0,1.0276755]
[1754771134444,0.3608,116820.0,116790.0,1.1132722]
[1754771134643,0.3608,116820.0,116800.0,0.33343775]
[1754771134644,0.12631,116810.0,116800.0,0.33343775]
[1754771134949,0.09342,116810.0,116800.0,0.7524683]
[1754771135143,0.445221,116810.0,116800.0,0.7524683]
[1754771135348,0.62889,116810.0,116800.0,0.7524683]
[1754771135549,0.334811,116810.0,116800.0,0.7524683]
[1754771136045,0.63189,116810.0,116800.0,0.7524683]
[1754771136247,0.63189,116810.0,116800.0,0.41903055]
[1754771136248,0.74872,116810.0,116800.0,0.41903055]
[1754771136455,0.74872,116810.0,116790.0,0.2567905]
[1754771136456,0.14047,116800.0,116790.0,0.2567905]
[1754771136643,0.812441,116800.0,116790.0,0.52930036]
[1754771137250,0.812441,116800.0,116790.0,0.085595]
[1754771137446,1.10652,116800.0,116790.0,0.085595]
[1754771137642,0.02364,116800.0,116790.0,0.52930036]
[1754771137847,0.62989,116800.0,116790.0,0.89010036]
[1754771138743,0.63089,116800.0,116790.0,0.89010036]
[1754771139152,0.66415,116800.0,116790.0,0.52930036]
[1754771139655,0.797349,116800.0,116790.0,0.085595]
[1754771139855,1.10852,116800.0,116790.0,0.52930036]
[1754771141154,1.194113,116800.0,116790.0,0.52930036]
[1754771141954,0.900034,116800.0,116790.0,0.52930036]
[1754771144352,0.900034,116800.0,116790.0,0.085595]
[1754771144554,0.900034,116800.0,116790.0,0.52930036]
[1754771144851,0.882942,116800.0,116790.0,0.52930036]
[1754771145059,0.2260779,116780.0,116770.0,0.2568394]
[1754771145256,0.2260852,116770.0,116760.0,0.3424817]
[1754771145452,0.8980562,116770.0,116760.0,0.3424817]
[1754771145651,0.8980562,116770.0,116760.0,0.78618706]
[1754771146458,0.8980562,116770.0,116760.0,0.78918706]
[1754771147459,0.5372562,116770.0,116760.0,0.78918706]